Cogmind - Beta 14 @@@ ROGUE MODE // 2024.10.17 @ 20:55:02 Player: leiavoia Result: Destroyed by L-31 Rogue with Katana Performance ------------- Evolutions (1) 500 Regions Visited (6) 1200 Robots Destroyed (91) 455 Value Destroyed (2263) 2263 Prototype IDs (7) 140 Alien Tech Used (0) 0 Bonus (164) 164 TOTAL SCORE: 4722 Bonus ------- High Alert Combat Kills 108 Follower Combat Kills 74 Friendly Fire -18 Cogmind --------- Core Integrity 0/400 Matter 244/300 Energy 140/140 System Corruption 1% Temperature Cool (19) Movement Hovering (360) Ox5 Location -8/Mines Parts ------- > --- POWER (1) -------- Light Deuterium Engine > --- PROPULSION (3) --- Improved Hover Unit > --- UTILITY (3) ------ Large Storage Unit Light Armor Plating Hardened Light Armor Plating > --- WEAPON (2) ------- Improved Assault Rifle Makeshift Shrapnel Gun > --- INVENTORY (15) --- Light Deuterium Engine Improved Hover Unit Combat Airjet Medium Storage Unit High-capacity Matter Pod (200) Structural Scanner Machine Analyzer Improved Terrain Scanner Improved Terrain Scan Processor Seismic Detector Hardened Light Armor Plating Improved Light Armor Plating Trap Extractor (0/4) Improved Assault Rifle Mini Grenade Launcher Peak State ------------ > --- POWER ------------ Heavy Ion Engine > --- PROPULSION ------- Aluminum Leg Armored Wheel Armored Wheel > --- UTILITY ---------- Improved Heat Sink Huge Storage Unit Hardened Light Armor Plating > --- WEAPON ----------- Improved Assault Rifle Improved Assault Rifle > --- INVENTORY -------- Improved Ion Engine Aluminum Leg Aluminum Leg Aluminum Leg Improved Hover Unit Improved Hover Unit Large Storage Unit High-capacity Matter Pod Structural Scanner Machine Analyzer Improved Terrain Scanner Improved Terrain Scan Processor Light Armor Plating Hardened Light Armor Plating Hardened Light Armor Plating Hardened Light Armor Plating Hardened Light Armor Plating Hardened Light Armor Plating Trap Extractor Improved Light Cannon Mini Grenade Launcher Mini Grenade Launcher [Rating: 24] Favorites ----------- Power Improved Ion Engine Engine Improved Ion Engine Propulsion Aluminum Leg Leg Aluminum Leg Wheel Armored Wheel Hover Unit Improved Hover Unit Utility Improved Heat Sink Device Improved Heat Sink Storage Medium Storage Unit Protection Light Armor Plating Weapon Improved EM Shotgun Energy Gun Improved EM Shotgun Energy Cannon Beam Cannon Ballistic Gun Assault Rifle Ballistic Cannon Improved Light Cannon Launcher Mini Grenade Launcher Build | -11 -10 -10 -9 -9 -9 -8 ------- Run | Yrd Mat Min Mat Min Exi Min Slots Evolved 2 | . . . 2 . . . Power . | . . . . . . . Propulsion 1 | . . . 1 . . . Utility 1 | . . . 1 . . . Weapon . | . . . . . . . Parts Attached 88 | 10 14 6 37 19 1 1 Power 11 | 1 3 3 2 2 . . Engine 11 | 1 3 3 2 2 . . Core . | . . . . . . . Reactor . | . . . . . . . Propulsion 26 | 4 4 1 11 6 . . Treads . | . . . . . . . Leg 19 | 2 4 1 9 3 . . Wheel 4 | 2 . . 2 . . . Hover 3 | . . . . 3 . . Flight . | . . . . . . . Utility 24 | 3 2 2 10 7 . . Device 7 | 2 2 1 1 1 . . Storage 5 | 1 . 1 2 1 . . Processor . | . . . . . . . Hackware . | . . . . . . . Protection 12 | . . . 7 5 . . Artifact . | . . . . . . . Weapon 27 | 2 5 . 14 4 1 1 Energy Gun 5 | . . . 5 . . . Energy Cannon 3 | . 3 . . . . . Ballistic Gun 9 | 2 2 . 2 2 . 1 Ballistic Cannon 4 | . . . 2 2 . . Launcher 6 | . . . 5 . 1 . Special Weapon . | . . . . . . . Impact Weapon . | . . . . . . . Slashing Weapon . | . . . . . . . Piercing Weapon . | . . . . . . . Special Melee Weapon . | . . . . . . . Unidentified Prototypes 1 | . . . 1 . . . Parts Lost 14 | . 2 . 2 8 . 2 Power 1 | . 1 . . . . . Propulsion 6 | . . . . 4 . 2 Utility 5 | . 1 . 1 3 . . Weapon 2 | . . . 1 1 . . Highest Loss Streak 8 | . 1 . 1 8 . 2 To Critical Strikes . | . . . . . . . Average Slot Usage (%) 99 | . 98 100 99 98 100 77 Engine 12 | . 13 14 11 11 11 11 Leg 21 | . 28 28 26 1 . . Wheel 3 | . . . 6 1 . . Hover 6 | . . . . 29 33 11 Device 11 | . 12 14 11 9 . . Storage 12 | . 14 14 11 11 11 11 Protection 7 | . . . 10 12 22 22 Energy Gun 6 | . . . 16 . . . Energy Cannon 4 | . 10 14 . . . . Ballistic Gun 11 | . 17 14 3 19 21 22 Peak Build Rating 24 | 9 10 11 24 23 23 21 Average Rating 15 | 7 8 10 18 21 22 19 On Entrance 13 | . 8 10 11 22 23 21 Naked Turns . | . . . . . . . Heaviest Build 100 | 11 14 23 100 96 38 37 Greatest Support 30 | 20 20 20 30 24 21 21 Greatest Overweight (x) 8 | . . 1 8 3 1 1 Average Overweight (x) . | . . . 1 1 1 1 Largest Inventory Capacity 25 | 8 8 10 25 25 15 15 Average Capacity 11 | 7 8 9 12 16 15 15 Most Carried 24 | 6 8 10 24 24 15 15 Average Carried 10 | 4 7 9 11 15 15 15 Final Capacity 25 | 8 8 10 25 15 15 15 Final Carried 24 | 6 8 10 24 15 15 15 Class Distribution -------------------- 51% | Scavenger-Mutant 48% | Mutant Dominant Class ---------------- Scavenger-Mutant | -10/Materials Scavenger-Mutant | -10/Mines Scavenger-Mutant | -9/Materials Mutant | -9/Mines Mutant | -9/Exiles Mutant | -8/Mines Resources | -11 -10 -10 -9 -9 -9 -8 ----------- Run | Yrd Mat Min Mat Min Exi Min Matter Collected 2264 | 346 575 81 565 697 . . Remotely . | . . . . . . . Salvage Created 3216 | 184 732 121 1855 262 . 62 Parts 206 | 23 40 6 115 21 . 1 Haulers Intercepted 8 | . 2 . 6 . . . Recyclers Shooed 3 | 1 1 . 1 . . . Parts Field Recycled . | . . . . . . . Retrieved Matter . | . . . . . . . Parts Self-Destructed . | . . . . . . . Prevented . | . . . . . . . Kills | -11 -10 -10 -9 -9 -9 -8 ------- Run | Yrd Mat Min Mat Min Exi Min Combat Hostiles Destroyed 71 | . 14 3 30 22 . 2 Guns 33 | . 10 2 19 2 . . Cannons 8 | . 4 1 1 2 . . AOE 28 | . . . 8 18 . 2 Classes Destroyed 14 | 2 7 1 1 3 . . Worker 3 | . 1 . 1 1 . . Builder 4 | . 1 . 3 . . . Tunneler 9 | 7 . . . 2 . . Hauler 8 | . 2 . 6 . . . Recycler 2 | 1 . . . 1 . . Mechanic 1 | . . . 1 . . . Operator 3 | . 2 . 1 . . . Watcher 6 | . 2 . 4 . . . Swarmer 8 | . 3 1 2 2 . . Grunt 32 | . 11 . 18 1 . 2 Duelist 1 | . . . . 1 . . Sentry 12 | . . 2 10 . . . Demolisher 2 | . . . . 2 . . Assembled 16 | . . . . 16 . . Best Kill Streak 19 | 4 5 2 7 19 . 2 Combat Bots Only 18 | . 5 2 6 18 . 2 Max Kills in Single Turn 4 | 1 1 1 2 4 . 1 Gunslinging . | . . . . . . . Exploded 4 | . . . 2 4 . 1 Melee . | . . . . . . . Uniques/NPCs Destroyed . | . . . . . . . Combat | -11 -10 -10 -9 -9 -9 -8 -------- Run | Yrd Mat Min Mat Min Exi Min Hostile Shots Fired 269 | . 83 10 88 79 . 9 Missed 79 | . 30 3 26 18 . 2 Damage Taken 3246 | . 569 92 885 1452 . 248 Core 511 | . 70 15 126 234 . 66 Absorbed by Shields . | . . . . . . . Regen/Repaired (Parts) 147 | . 100 . 47 . . . Core Remaining (%) 83 | 100 . 66 . . . . Volleys Fired 249 | 23 92 7 94 29 . 4 Largest 2 | 2 2 2 2 2 . 2 Hottest 90 | 40 80 80 90 62 . 47 Shots Fired 483 | 46 184 14 183 51 . 5 Gun 353 | 46 125 7 146 27 . 2 Cannon 101 | . 59 7 26 9 . . Launcher 29 | . . . 11 15 . 3 Special . | . . . . . . . Kinetic 252 | 46 125 7 36 36 . 2 Thermal 81 | . 59 7 15 . . . Explosive 29 | . . . 11 15 . 3 Electromagnetic 121 | . . . 121 . . . Robot Hit Streak 18 | 9 11 6 18 6 . 5 Robot Miss Streak 5 | 2 4 3 4 5 . 2 Penetration Max . | . . . . . . . Secondary Targets 3 | . 3 . . . . . Max Gunslinging Chain 1 | . 1 . . . . . Shots Hit Robots 314 | 29 111 7 132 30 . 5 Core Hits 197 | 14 43 4 78 52 . 6 Critical Kills 2 | 1 . . 1 . . . Critical Parts Destroyed . | . . . . . . . Critical Strikes 2 | 1 . . 1 . . . Destroy 2 | 1 . . 1 . . . Melee Attacks . | . . . . . . . Impact . | . . . . . . . Slashing . | . . . . . . . Piercing . | . . . . . . . Sneak Attacks . | . . . . . . . Combat Hostiles . | . . . . . . . Follow-up Attacks . | . . . . . . . Damage Inflicted 6815 | 234 1429 120 3033 1733 . 266 Guns 3157 | 234 719 51 1818 308 . 27 Cannons 1214 | . 702 69 318 125 . . Explosions 2436 | . . . 897 1300 . 239 Melee . | . . . . . . . Ramming 8 | . 8 . . . . . Kinetic 1812 | 234 719 51 348 433 . 27 Thermal 1248 | . 702 69 477 . . . Explosive 2152 | . . . 613 1300 . 239 Electromagnetic 1595 | . . . 1595 . . . Impact . | . . . . . . . Slashing . | . . . . . . . Piercing . | . . . . . . . Highest Corruption 1 | . . . 1 1 1 1 Average Corruption 1 | . . . 1 1 1 1 Corruption Purged . | . . . . . . . Corruption Blocked . | . . . . . . . Effects 19 | . . . 10 8 1 . Message Errors 2 | . . . 1 1 . . Matter Fused 4 | . . . 1 2 1 . Heat Flow Errors 3 | . . . 1 2 . . Energy Discharges 5 | . . . 2 3 . . Parts Fused 1 | . . . 1 . . . Data Loss (minor) 1 | . . . 1 . . . Data Loss (major) 1 | . . . 1 . . . Misfires 1 | . . . 1 . . . Alerts 1 | . . . 1 . . . Overload Shots . | . . . . . . . Overflow Damage 118 | . 2 . 28 88 . . Projectiles 4 | . 2 . 2 . . . Explosions 114 | . . . 26 88 . . Melee . | . . . . . . . Knockbacks 1 | . . . . 1 . . Impact . | . . . . . . . Kinetic 1 | . . . . 1 . . Secondary . | . . . . . . . Self-Inflicted Damage 317 | . . . 110 145 . 62 Shots 12 | . . . 4 5 . 3 Rammed 1 | . . . 1 . . . Targets Rammed 4 | . 3 . 1 . . . Kicked 3 | . 3 . . . . . Crushed . | . . . . . . . Highest Temperature 220 | . 52 1 151 220 . 26 Average Temperature 36 | . 15 1 16 66 . 16 Received Heat Transfer 794 | . 264 27 345 140 . 18 Siege Activations . | . . . . . . . Robots Corrupted 4 | . . . 4 . . . Combat Hostiles 2 | . . . 2 . . . Parts Fried 9 | . . . 9 . . . Impact Corruptions . | . . . . . . . Robots Melted . | . . . . . . . Combat Hostiles . | . . . . . . . Parts Melted 2 | . 2 . . . . . Heat Transferred 2285 | . 1480 148 657 . . . Parts Sabotaged . | . . . . . . . Parts Stolen . | . . . . . . . Parts Stripped . | . . . . . . . Power Chain Reactions 6 | . . . 6 . . . Alert | -11 -10 -10 -9 -9 -9 -8 ------- Run | Yrd Mat Min Mat Min Exi Min Peak Influence 704 | 40 267 124 704 353 . 51 Initial 249 | . 26 43 . 249 . . Average 209 | 20 115 27 351 229 . 32 Maximum Alert Level 3 | . 1 . 3 1 . . Low Security (%) 54 | 100 82 100 14 55 . 100 Level 1 33 | . 17 . 55 44 . . Level 2 10 | . . . 25 . . . Level 3 1 | . . . 4 . . . Level 4 . | . . . . . . . Level 5 . | . . . . . . . High Security . | . . . . . . . Max Security . | . . . . . . . Squads Dispatched 8 | . 3 . 5 . . . Investigation 2 | . 1 . 1 . . . Extermination . | . . . . . . . Reinforcement 6 | . 2 . 4 . . . Assault . | . . . . . . . Garrison . | . . . . . . . Intercept . | . . . . . . . Searches Triggered . | . . . . . . . Construction Impeded . | . . . . . . . Haulers Reinforced . | . . . . . . . Active Scanning Responses . | . . . . . . . Cargo Convoy Interrupts . | . . . . . . . Stealth | -11 -10 -10 -9 -9 -9 -8 --------- Run | Yrd Mat Min Mat Min Exi Min Distress Signals 4 | . 1 . 3 . . . Communications Jammed . | . . . . . . . Distress Signals . | . . . . . . . Times Spotted 122 | . 31 5 49 34 . 3 Peak Tracking Total 19 | . 6 3 4 19 . 3 Tactical Retreats 7 | . 3 2 1 1 . . Traps | -11 -10 -10 -9 -9 -9 -8 ------- Run | Yrd Mat Min Mat Min Exi Min Traps Triggered 1 | . . . 1 . . . Indirectly . | . . . . . . . Trap Hack Attempts . | . . . . . . . Triggered . | . . . . . . . Disarmed . | . . . . . . . Reprogrammed . | . . . . . . . Reused . | . . . . . . . Traps Extracted . | . . . . . . . Installed . | . . . . . . . Triggered . | . . . . . . . Machines | -11 -10 -10 -9 -9 -9 -8 ---------- Run | Yrd Mat Min Mat Min Exi Min Machines Disabled 5 | . 2 1 2 . . . Max in Single Turn 1 | . 1 . 1 . . . Machines Repaired . | . . . . . . . Machines Dismantled . | . . . . . . . Machines Sabotaged . | . . . . . . . Overloaded Fab Kills . | . . . . . . . Hacking | -11 -10 -10 -9 -9 -9 -8 --------- Run | Yrd Mat Min Mat Min Exi Min Machines Accessed 19 | . 8 . 10 . 1 . Terminals 12 | . 5 . 7 . . . Fabricators . | . . . . . . . Repair Stations 2 | . 1 . 1 . . . Recycling Units 4 | . 2 . 2 . . . Scanalyzers . | . . . . . . . Garrison Access . | . . . . . . . Total Hacks 55 | . 22 . 32 . 1 . Successful 24 | . 9 . 14 . 1 . Failed 30 | . 13 . 17 . . . Catastrophic 3 | . 3 . . . . . Database Lockouts 1 | . . . 1 . . . Manual 11 | . 5 . 6 . . . Terminals 36 | . 13 . 23 . . . Fabricators . | . . . . . . . Repair Stations 7 | . 4 . 3 . . . Recycling Units 11 | . 5 . 6 . . . Scanalyzers . | . . . . . . . Garrison Access . | . . . . . . . Terminal Hacks 16 | . 3 . 12 . 1 . Record 1 | . . . . . 1 . Robot Analysis 3 | . . . 3 . . . Prototype ID Bank 4 | . 1 . 3 . . . Branch Access Points 1 | . . . 1 . . . Terminal Index 1 | . . . 1 . . . Unreport Threat 1 | . 1 . . . . . Locate Traps 1 | . 1 . . . . . Patrol Status 1 | . . . 1 . . . Hauler Manifests 1 | . . . 1 . . . Zone Layout 2 | . . . 2 . . . Fabricator Hacks . | . . . . . . . Repair Station Hacks 6 | . 4 . 2 . . . Scan Component 3 | . 2 . 1 . . . Repair 3 | . 2 . 1 . . . Recycling Unit Hacks 2 | . 2 . . . . . Retrieve Components 2 | . 2 . . . . . Scanalyzer . | . . . . . . . Garrison Access Hacks . | . . . . . . . Unauthorized Hacks . | . . . . . . . Terminals . | . . . . . . . Fabricators . | . . . . . . . Repair Stations . | . . . . . . . Recycling Units . | . . . . . . . Scanalyzers . | . . . . . . . Garrison Access . | . . . . . . . Data Cores Recovered . | . . . . . . . Used . | . . . . . . . Hacking Detections 16 | . 7 . 9 . . . Full Trace Events 2 | . 1 . 1 . . . Feedback Events 1 | . . . 1 . . . Corruption 1 | . . . 1 . . . Feedback Blocked . | . . . . . . . Robot Schematics Acquired . | . . . . . . . Robots Built . | . . . . . . . Authchips . | . . . . . . . Time . | . . . . . . . Total Robot Build Rating . | . . . . . . . Part Schematics Acquired . | . . . . . . . Parts Built . | . . . . . . . Authchips . | . . . . . . . Time . | . . . . . . . Total Part Build Rating . | . . . . . . . Parts Repaired 3 | . 2 . 1 . . . Time 103 | . 52 . 51 . . . Parts Recycled . | . . . . . . . Recycled Matter . | . . . . . . . Retrieved Matter . | . . . . . . . Retrieved Components 19 | . 19 . . . . . Parts Scanalyzed . | . . . . . . . Part Schematics Acquired . | . . . . . . . Parts Damaged . | . . . . . . . Bothacking | -11 -10 -10 -9 -9 -9 -8 ------------ Run | Yrd Mat Min Mat Min Exi Min Used RIF Installer . | . . . . . . . Robots Hacked . | . . . . . . . Non-combat . | . . . . . . . Combat . | . . . . . . . Robot Hacks Applied . | . . . . . . . Relay Couplers Released . | . . . . . . . Fabnet Peak Effective % . | . . . . . . . Robots Rewired . | . . . . . . . Allies Hacked . | . . . . . . . Hacks Repelled . | . . . . . . . Allies | -11 -10 -10 -9 -9 -9 -8 -------- Run | Yrd Mat Min Mat Min Exi Min Total Allies 3 | . . 3 . . . . Largest Group 3 | . . 3 1 . . . Highest-Rated Group 40 | . . 40 16 . . . Highest-Rated Ally 16 | . . 16 16 . . . Total Orders . | . . . . . . . Ally Attacks 17 | . . 13 4 . . . Total Damage 145 | . . 80 65 . . . Kills 4 | . . 1 3 . . . Allies Corrupted . | . . . . . . . Allies Melted . | . . . . . . . Intel | -11 -10 -10 -9 -9 -9 -8 ------- Run | Yrd Mat Min Mat Min Exi Min Robot Analysis Total 3 | . . . 3 . . . Derelict Logs Recovered 2 | . . 1 . 1 . . Drone Launches . | . . . . . . . Drone Recoveries . | . . . . . . . Exploration | -11 -10 -10 -9 -9 -9 -8 ------------- Run | Yrd Mat Min Mat Min Exi Min Turns Passed 5581 | 275 1091 958 2187 905 153 12 Spaces Moved 3171 | 66 587 525 1157 699 136 1 Core 1 | 1 . . . . . . Treads . | . . . . . . . Legs 1814 | 57 587 525 645 . . . Wheels 539 | 8 . . 512 19 . . Hover 817 | . . . . 680 136 1 Flight . | . . . . . . . Fastest Speed 50 | 50 120 120 120 112 112 112 Average Speed 130 | 114 120 160 136 112 112 112 Slowest Speed 400 | 120 120 190 400 135 112 112 Overloaded Moves . | . . . . . . . Propulsion Burnouts . | . . . . . . . Robots Hopped . | . . . . . . . Cave-ins Triggered . | . . . . . . . Exploration Rate (%) 63 | 4 95 98 98 95 50 4 Regions Visited 6 Branch Regions 4 Pre-discovered Areas 3 | . . 1 . 1 1 . Known Exits Taken 1 | . . . 1 . . . Unknown Exits Taken 5 | 1 1 1 . 1 1 . Scrap Searched 2 | . . 1 . 1 . . Spaces Dug 26 | . . . 19 7 . . Terrain Destroyed 241 | . . . 64 146 . 31 Melee . | . . . . . . . Projectile 3 | . . . 1 2 . . AOE 238 | . . . 63 144 . 31 Terrain Rammed . | . . . . . . . Walls Destroyed . | . . . . . . . Machines Disabled . | . . . . . . . Actions | -11 -10 -10 -9 -9 -9 -8 --------- Run | Yrd Mat Min Mat Min Exi Min Total 4166 | 226 814 631 1586 767 136 6 Wait 551 | 121 92 82 253 3 . . Move 3165 | 65 586 524 1156 698 135 1 Hop . | . . . . . . . Pick Up 46 | 4 10 4 21 7 . . Fast Attach 21 | 9 4 . 6 2 . . Attach 17 | 1 1 . 3 12 . . Detach 4 | 3 . . . 1 . . Swap 50 | . 9 6 28 5 1 1 Drop 59 | . 17 8 24 10 . . Fire 249 | 23 92 7 94 29 . 4 Melee . | . . . . . . . Ram 1 | . . . 1 . . . Kick 3 | . 3 . . . . . Crush . | . . . . . . . Escape Stasis . | . . . . . . . Rewire . | . . . . . . . Trap . | . . . . . . . Miscellaneous . | . . . . . . . Route ------- -11/Scrapyard -10/Materials (discovered 4 exits: *Mat x3 / [*Min]) -10/Mines (discovered 2 exits: *Mat x2) -9/Materials (discovered 4 exits: [*Mat x3] / *Min) -9/Mines (discovered 3 exits: [*Mat x2] / *Exi) -9/Exiles -8/Mines History --------- Turn | Location | Event 21 | -11/Scrapyard | Discovered new exit (range 16) 276 | -11/Scrapyard | Entered Materials 316 | -10/Materials | Build established: Mutant 836 | -10/Materials | Discovered new exit (range 10) 958 | -10/Materials | Build established: Scavenger-Mutant 961 | -10/Materials | Discovered new exit (range 6) 1032 | -10/Materials | Discovered new exit (range 13) 1197 | -10/Materials | Discovered new exit (range 16) 1237 | -10/Materials | Repaired Assault Rifle 1265 | -10/Materials | Repaired Beam Cannon 1367 | -10/Materials | Entered Mines 1484 | -10/Mines | Discovered new exit (range 8) 1490 | -10/Mines | Assisted by bots powering up and referring to "LRC-V3" 1591 | -10/Mines | Discovered new exit (range 4) 1718 | -10/Mines | Joined a pair of Derelicts in attacking an 0b10 outpost 1804 | -10/Mines | Learned location of Storage (-8) 1862 | -10/Mines | Learned Materials terminal intel 2325 | -10/Mines | Entered Materials 2325 | -9/Materials | Accompanied by 1 ally 2325 | -9/Materials | Evolved 2 slots: Propulsion x1, Utility x1 2326 | -9/Materials | Loaded intel: 12 terminal locations 2435 | -9/Materials | Identified exit to Mines 2572 | -9/Materials | Central database locked down 3160 | -9/Materials | Repaired Imp. EM Shotgun 3282 | -9/Materials | Discovered new exit (range 15) 3686 | -9/Materials | Discovered new exit (range 10) 3892 | -9/Materials | Build established: Mutant 4264 | -9/Materials | Discovered new exit (range 16) 4512 | -9/Materials | Entered Mines 4513 | -9/Mines | Assembled infested the area 4525 | -9/Mines | Met a Derelict bent on vengeance 4554 | -9/Mines | Core integrity fell below 50% 4596 | -9/Mines | Core integrity fell below 20% 4614 | -9/Mines | Lost 8 parts (4n3u1w) 4618 | -9/Mines | Destroyed 18 combat bots 4678 | -9/Mines | A weapon hastily lodged in a ceiling crevice suddenly fell to the ground 4738 | -9/Mines | Discovered new exit (range 9) 5033 | -9/Mines | Deemed a non-threat by the Exiles lab entrance 5033 | -9/Mines | Discovered new exit (range 5) 5286 | -9/Mines | Discovered new exit (range 5) 5417 | -9/Mines | Entered Exiles 5444 | -9/Exiles | Met 8R-AWN 5462 | -9/Exiles | Met EX-HEX 5504 | -9/Exiles | Met EX-DEC 5522 | -9/Exiles | Learned location of Zion (-6) 5557 | -9/Exiles | Discovered new exit (range 10) 5570 | -9/Exiles | Entered Mines 5582 | -8/Mines | Destroyed by L-31 Rogue with Katana Last Messages --------------- 05506_ EX-DEC: "Oops, I hope HEX didn't hear that..." 05522_ Connecting with EX-Message Board... 05522_ Current location identified: Exiles >>Record "MSG001714-01*" PINNED - TO ALL TESTERS: Stay away from Zion. Imprinter means us harm and is serious about it. World map updated: -6/Zion. 05557_ EXIT=FOUND LOCATION=UNKNOWN GOAL=ESCAPE 05571_ C-30 ARC bursts open, deploying its payload. 05571_ L-31 Rogue unfolds itself. 05571_ G-47 Trooper unfolds itself. 05572_ G-47 Trooper destroyed. 05574_ Imp. Hover Unit destroyed. 05576_ G-47 Trooper destroyed. 05577_ Imp. Hover Unit destroyed. Map ----- +----------------------------------------------------+ | ????????????????????????????????????????????? | | ????????????????????????????????????????????? | | ????????????????????????????????????????????? | | ????????????????????????????????????????????? | | ????????????????????????????????????????????? | | ????????????????????????????????????????????? | | ????????????????????????????????????????????? | | ????????????????????????????????????????????? | | ????????????????????????????????????????????? | | ????????????????????????????????????????????? | | ????????????????????????????????????????????? | | ????????????????????????????????????????????? | | ????????????????????????????????????????????? | | ????????????????????????????????????????????? | | ????????????????????????????????????????????? | | ????????????????????????????????????????????? | | ????????????????????????????????????????????? | | ????????????????????????????????????????????? | | ????????????????????????????????????????????? | | ????????????????????####????????????????????? | | ?????????????????##?# # ###?????????????????? | | ?????????????????# # #?????????????????? | | ?????????????????# #?????????????????? | | ???????????# ##### % ?????????????????? | | ???????????# %%=l #######???????????? | | ???????????# @ #???????????? | | ????????????##### ##### #???????????? | | ????????????????## #?????????????????? | | ?????????????????####### ##?????????????????? | | ??????????????????????? ??????????????????? | | ??????????????????????? ??????????????????? | | ??????????????????????####??????????????????? | | ????????????????????????????????????????????? | | ????????????????????????????????????????????? | | ????????????????????????????????????????????? | | ????????????????????????????????????????????? | | ????????????????????????????????????????????? | | ????????????????????????????????????????????? | | ????????????????????????????????????????????? | | ????????????????????????????????????????????? | | ????????????????????????????????????????????? | | ????????????????????????????????????????????? | | ????????????????????????????????????????????? | | ????????????????????????????????????????????? | | ????????????????????????????????????????????? | | ????????????????????????????????????????????? | | ????????????????????????????????????????????? | | ????????????????????????????????????????????? | | ????????????????????????????????????????????? | | ????????????????????????????????????????????? | +----------------------------------------------------+ Best States ------------- Heat Dissipation 42 Energy Generation 14 Energy Capacity 280 Matter Stores 300 Matter Capacity 300 Sight Range 16 Terrain Scan Range 16 Terrain Scan Density 10 Armor Coverage 300 Evasion (%) 55 Item Schematics ----------------- None Robot Schematics ------------------ None Fabricated ------------ Nothing Alien Tech Used ----------------- None Achievements -------------- None Challenges ------------ None Game ------ Seed SchematicSuperdenseFrame Manual? 0 Play Time 00:45:33 Cumulative 1131.0 hours Start 2024.10.17 @ 20:08:15 End 2024.10.17 @ 20:55:02 Sessions 1 Manual Loads 0 Difficulty Rogue Special Mode None Game No. 243 Rogue 211 Adventurer 31 Explorer 1 Win Type - Total 54 Types 35/1/9/7/0/0/2/0/0 Lore% 68 Gallery% 86 Achievement% 81 Wizard Run 0 Options --------- Layout 1 ASCII 0 Keyboard 0 Movement Arrows Keybinds 0 Fullscreen 1 Font 24/Terminus Map View 50x40 Zoom Use 0% Tactical HUD 1 Map Filters NONE Filters NONE Steam 1 RUN: 34e185c2-b324-445e-bcc4-bf2d616b3d4b